bitfinex-derivatives/quotes_SOLF0:USTF0_20250424
["timestamp","ask_amount","ask_price","bid_price","bid_amount"]
[1745462770164,42.05022744,149.52,149.47,6.6878]
[1745462770565,42.05022744,149.52,149.48,6.6877]
[1745462770769,35.36432744,149.52,149.48,6.6877]
[1745462772461,35.36432744,149.52,149.49,6.6872]
[1745462772667,10.16432744,149.56,149.46,10.16432744]
[1745462772871,25.22,149.55,149.48,10.16432744]
[1745462773067,1.9985,149.57,149.48,12.21602744]
[1745462773266,27.2185,149.57,149.5,10.16432744]
[1745462773670,27.2185,149.57,149.53,6.6851]
[1745462775475,10.16432744,149.56,149.51,6.686]
[1745462775675,10.16432744,149.56,149.48,2.0517]
[1745462775875,16.84862744,149.56,149.48,2.0517]
[1745462776776,10.16432744,149.56,149.48,2.0517]
[1745462776977,27.2185,149.57,149.53,6.6851]
[1745462777178,27.2185,149.57,149.48,4.065]
[1745462777577,27.2185,149.57,149.53,6.6852]
[1745462778777,33.9022,149.57,149.52,6.6857]
[1745462779380,33.9022,149.57,149.53,6.6854]
[1745462779678,27.2185,149.57,149.48,4.065]
[1745462779872,10.16432744,149.59,149.48,4.065]
[1745462780074,10.16432744,149.61,149.57,6.6836]
[1745462780276,31.9016,149.62,149.53,35.38432744]
[1745462780471,25.22,149.62,149.6,6.6823]
[1745462781272,25.22,149.62,149.59,6.6826]
[1745462781472,25.22,149.62,149.55,12.20522744]
[1745462781675,1.8714,149.64,149.55,12.20522744]
[1745462781875,1.8714,149.64,149.59,6.6825]
[1745462782281,1.8714,149.64,149.6,6.6822]
[1745462782479,1.8714,149.64,149.57,25.22]
[1745462782781,1.8714,149.64,149.57,35.38432744]
[1745462782973,1.8714,149.64,149.61,6.6817]
[1745462783175,1.8714,149.64,149.57,35.38432744]
[1745462783976,1.8714,149.64,149.61,6.6815]
[1745462784270,35.38432744,149.65,149.57,35.38432744]
[1745462785081,42.06442744,149.65,149.61,6.6818]
[1745462785983,35.38432744,149.65,149.61,6.6818]
[1745462786982,42.06442744,149.65,149.61,6.6818]
[1745462787885,35.38432744,149.65,149.61,6.6818]
[1745462788482,35.38432744,149.65,149.62,6.6813]
[1745462788784,25.22,149.65,149.57,35.38432744]
[1745462789484,25.22,149.65,149.59,10.16432744]
[1745462789884,10.16432744,149.67,149.62,6.6811]
[1745462789885,16.84352744,149.67,149.62,6.6811]
[1745462790085,10.16432744,149.67,149.57,35.38432744]
[1745462790485,6.6797,149.66,149.61,6.6816]
[1745462790684,10.16432744,149.67,149.57,35.38432744]
[1745462791589,16.84362744,149.67,149.62,6.681]
[1745462792690,6.6797,149.66,149.61,6.6817]
[1745462792890,10.16432744,149.67,149.57,35.38432744]
[1745462793389,1.9196,149.7,149.61,10.16432744]
[1745462793587,1.9196,149.7,149.63,10.16432744]
[1745462793788,1.9196,149.7,149.67,6.6792]
[1745462793990,25.2,149.71,149.63,10.16432744]
[1745462794386,25.2,149.71,149.68,6.6786]
[1745462796695,25.2,149.71,149.69,6.6782]
[1745462797094,25.2,149.71,149.63,10.16432744]
[1745462798294,25.2,149.71,149.67,6.6789]
[1745462799593,25.2,149.71,149.68,6.6787]
[1745462799797,10.16432744,149.73,149.65,10.16432744]
[1745462800996,10.16432744,149.73,149.69,6.678]
[1745462801196,24.9,149.74,149.66,24.9]
[1745462801396,35.06432744,149.74,149.66,24.9]
[1745462801590,35.06432744,149.74,149.68,6.6784]
[1745462801896,35.06432744,149.74,149.66,24.9]
[1745462802399,6.6767,149.73,149.66,24.9]
[1745462802596,6.6767,149.73,149.68,6.6787]
[1745462802798,35.06432744,149.74,149.68,6.6787]
[1745462803095,35.06432744,149.74,149.69,6.6782]
[1745462803600,6.6767,149.73,149.69,6.6782]
[1745462803799,24.9,149.74,149.7,6.6777]
[1745462803999,24.9,149.74,149.66,24.9]
[1745462804201,31.5764,149.74,149.66,24.9]
[1745462804394,24.9,149.74,149.66,24.9]
[1745462805599,24.9,149.74,149.7,6.6776]
[1745462805898,24.9,149.74,149.67,10.16432744]
[1745462806200,24.9,149.74,149.71,6.6771]
[1745462806497,10.5801,149.76,149.67,10.16432744]
[1745462806698,10.5801,149.76,149.68,4.0343]
[1745462806898,554.14,149.77,149.69,10.16432744]
[1745462807095,35.04432744,149.79,149.7,24.88]
[1745462807700,24.88,149.79,149.71,10.16432744]
[1745462808202,24.88,149.79,149.75,6.6753]
[1745462809000,35.04432744,149.79,149.7,24.88]
[1745462809302,6.6746,149.78,149.73,6.6762]
[1745462810697,35.04432744,149.79,149.73,6.6762]
[1745462810902,6.6748,149.77,149.73,6.6762]
[1745462811200,35.04432744,149.79,149.71,10.16432744]
[1745462811502,24.88,149.79,149.71,10.16432744]
[1745462812404,31.5541,149.79,149.75,6.6753]
[1745462812597,24.88,149.79,149.71,10.16432744]
[1745462812796,10.16432744,149.81,149.71,10.16432744]
[1745462813002,10.16432744,149.81,149.73,10.16432744]
[1745462813300,2.0552,149.83,149.75,10.16432744]
[1745462813499,2.0552,149.83,149.75,12.14512744]
[1745462813700,12.21952744,149.83,149.75,12.14512744]
[1745462813900,12.21952744,149.83,149.75,1.9808]
[1745462814104,6.6727,149.82,149.78,6.6742]
[1745462814595,6.6727,149.82,149.75,1.9808]
[1745462814794,6.673,149.81,149.77,6.6745]
[1745462815000,6.673,149.81,149.75,1.9808]
[1745462815300,6.673,149.81,149.76,6.675]
[1745462815502,10.16432744,149.81,149.74,24.88]
[1745462815696,26.7663,149.82,149.74,24.88]
[1745462815900,10.16432744,149.79,149.74,31.5557]
[1745462816105,16.83832744,149.79,149.74,24.88]
[1745462816299,10.16432744,149.79,149.74,24.88]
[1745462816494,10.16432744,149.79,149.75,6.6753]
[1745462816698,6.6735,149.8,149.75,6.6753]
[1745462817903,6.6735,149.8,149.76,6.6751]
[1745462818402,6.6739,149.79,149.76,6.6751]
[1745462819307,6.6736,149.8,149.76,6.6751]
[1745462820305,6.6738,149.79,149.76,6.6751]
[1745462820606,10.16432744,149.81,149.76,6.6751]
[1745462820906,10.16432744,149.79,149.74,24.88]
[1745462821108,10.16432744,149.79,149.71,24.88]
[1745462821507,6.6744,149.78,149.71,24.88]
[1745462822107,6.6748,149.77,149.74,6.6758]
[1745462822309,10.16432744,149.8,149.71,24.88]
[1745462823006,6.6741,149.79,149.75,6.6754]
[1745462823811,6.6741,149.79,149.76,6.6751]
[1745462824110,10.16432744,149.8,149.76,6.6751]
[1745462824508,6.6739,149.79,149.76,6.6751]
[1745462825909,6.6743,149.78,149.75,6.6754]
[1745462827112,6.674,149.79,149.76,6.6751]
[1745462827513,10.16432744,149.8,149.71,24.88]
[1745462827808,10.16432744,149.8,149.75,6.6754]
[1745462827809,6.6745,149.78,149.75,6.6754]
[1745462829311,13.164753,149.78,149.75,6.6754]
[1745462830412,6.6747,149.77,149.75,6.6754]
[1745462830608,6.6747,149.77,149.74,6.6758]
[1745462831214,6.6754,149.76,149.73,6.6764]
[1745462831513,6.490253,149.76,149.71,24.88]
[1745462831716,13.166653,149.74,149.7,6.6776]
[1745462832518,6.490253,149.74,149.69,6.6781]
[1745462832712,6.490253,149.72,149.68,34.832053]
[1745462833015,6.490253,149.72,149.68,26.4564]
[1745462833313,6.6774,149.71,149.68,26.4564]
[1745462833513,6.6774,149.71,149.68,24.58]
[1745462833714,6.490253,149.7,149.68,24.58]
[1745462833914,6.490253,149.7,149.65,24.58]
[1745462834217,13.168353,149.7,149.66,6.6796]
[1745462834414,13.168353,149.7,149.65,24.58]
[1745462834918,6.6784,149.69,149.65,31.2598]
[1745462835116,6.490253,149.7,149.65,31.2598]
[1745462835517,13.168353,149.7,149.65,31.2598]
[1745462836811,6.490253,149.7,149.65,24.58]
[1745462837115,6.490253,149.7,149.66,6.6795]
[1745462838820,6.490253,149.7,149.67,6.6791]
[1745462839318,6.490253,149.7,149.65,24.58]
[1745462839518,6.490253,149.7,149.68,6.6785]
[1745462839915,24.58,149.73,149.66,6.490253]
[1745462840119,6.490253,149.75,149.7,6.490253]
[1745462840618,6.490253,149.75,149.72,6.6767]
[1745462842016,6.490253,149.75,149.73,6.6764]
[1745462842217,6.490253,149.75,149.7,6.490253]
[1745462843513,6.490253,149.75,149.73,6.6762]
[1745462843817,6.490253,149.75,149.7,6.490253]
[1745462844215,33.151053,149.76,149.7,6.490253]
[1745462844818,39.826253,149.76,149.73,6.6762]
[1745462845020,6.490253,149.74,149.7,6.490253]
[1745462845217,6.490253,149.74,149.69,24.6]
[1745462845418,6.490253,149.74,149.73,6.6765]
[1745462846420,6.490253,149.75,149.7,6.490253]
[1745462846618,26.6608,149.76,149.7,6.490253]
[1745462846820,33.151053,149.76,149.7,6.490253]
[1745462847514,33.151053,149.76,149.73,6.6762]
[1745462847720,31.090253,149.76,149.72,6.490253]
[1745462847914,6.490253,149.77,149.72,6.490253]
[1745462848420,6.490253,149.75,149.7,8.448553]
[1745462848822,6.490253,149.75,149.72,6.6767]
[1745462849923,6.490253,149.75,149.73,6.6764]
[1745462850723,6.490253,149.75,149.7,8.448553]
[1745462851223,6.490253,149.75,149.69,24.6]
[1745462851425,6.490253,149.75,149.69,31.090253]
[1745462851624,6.490253,149.73,149.67,6.490253]
[1745462852226,6.490253,149.73,149.7,6.6778]
[1745462852529,6.6761,149.74,149.67,6.490253]
[1745462852530,6.490253,149.71,149.67,6.490253]
[1745462852929,6.490253,149.71,149.69,6.6779]
[1745462853833,31.2561,149.74,149.69,6.6779]
[1745462854134,6.490253,149.7,149.67,6.6791]
[1745462854335,6.490253,149.7,149.65,24.58]
[1745462855233,6.490253,149.7,149.67,6.6792]
[1745462855836,6.490253,149.68,149.64,6.490253]
[1745462856539,6.490253,149.68,149.65,6.6797]
[1745462857131,6.490253,149.68,149.64,6.490253]
[1745462857435,6.490253,149.68,149.62,35.100953]
[1745462857634,6.490253,149.68,149.64,6.6803]
[1745462858134,6.490253,149.68,149.65,6.68]
[1745462858336,6.490253,149.68,149.62,35.100953]
[1745462858636,6.490253,149.68,149.65,6.6797]
[1745462859834,6.490253,149.68,149.64,6.6803]
[1745462860038,6.490253,149.66,149.62,10.520953]
[1745462860539,6.490253,149.66,149.6,559.790253]
[1745462860738,6.490253,149.64,149.6,31.050253]
[1745462861438,6.490253,149.64,149.58,6.490253]
[1745462862233,6.490253,149.62,149.57,1.9959]
[1745462862538,6.490253,149.58,149.56,6.684]
[1745462863433,16.84916462,149.61,149.56,6.684]
[1745462863640,6.6826,149.6,149.55,6.6844]
[1745462865143,10.16706462,149.57,149.54,6.6849]
[1745462865346,10.16706462,149.57,149.51,2.0016]
[1745462865740,10.16706462,149.57,149.54,6.6846]
[1745462866144,10.16706462,149.57,149.51,2.0016]
[1745462866346,10.16706462,149.57,149.53,6.6851]
[1745462867544,10.16706462,149.57,149.51,2.0016]
[1745462869045,10.16706462,149.57,149.53,6.6851]
[1745462869942,10.16706462,149.57,149.54,6.685]
[1745462870148,10.16706462,149.57,149.51,2.0016]
[1745462870441,26.4969,149.58,149.51,2.0016]
[1745462870647,26.4969,149.58,149.55,6.6842]
[1745462871147,26.4969,149.58,149.54,6.6848]
[1745462871549,10.16706462,149.57,149.54,6.6848]
[1745462875350,10.16706462,149.57,149.55,6.6844]
[1745462875650,10.16706462,149.57,149.51,2.0016]
[1745462875951,10.16706462,149.57,149.54,6.6847]
[1745462876553,16.85076462,149.57,149.54,6.6847]
[1745462876952,10.16706462,149.57,149.54,6.6847]
[1745462877855,10.16706462,149.57,149.55,6.6844]
[1745462879152,16.85076462,149.57,149.54,6.6848]
[1745462880354,10.16706462,149.57,149.55,6.6845]
[1745462881752,24.58,149.58,149.56,6.6841]
[1745462881956,10.16706462,149.57,149.48,2.0035]
[1745462882156,10.16706462,149.54,149.48,2.0035]
[1745462882455,10.16706462,149.52,149.46,1.8999]
[1745462882655,16.85296462,149.52,149.47,6.688]
[1745462882856,16.85296462,149.52,149.42,3.8183]
[1745462882857,10.16706462,149.5,149.42,29.4783]
[1745462883047,16.85416462,149.5,149.42,29.4783]
[1745462883247,6.5163734,149.47,149.42,35.9946734]
[1745462883454,6.5163734,149.47,149.43,6.6898]
[1745462883654,6.5163734,149.47,149.42,34.0801734]
[1745462883855,6.5163734,149.47,149.42,34.254]
[1745462884050,6.5163734,149.45,149.39,25.66]
[1745462884254,6.5163734,149.43,149.39,25.66]
[1745462885355,16.87651377,149.45,149.4,6.6911]
[1745462885957,10.18741377,149.45,149.4,6.6911]
[1745462886757,35.86741377,149.45,149.39,6.6916]
[1745462887355,35.86741377,149.45,149.36,25.68]
[1745462887654,1.9357,149.44,149.36,25.68]
[1745462887856,1.9357,149.44,149.39,6.6913]
[1745462888459,10.18741377,149.43,149.39,6.6913]
[1745462889160,10.18741377,149.43,149.38,6.6921]
[1745462889361,10.18741377,149.41,149.36,25.68]
[1745462889662,10.18741377,149.41,149.37,6.6926]
[1745462889958,10.18741377,149.41,149.33,25.68]
[1745462890158,16.87821377,149.41,149.33,25.68]
[1745462890660,10.18741377,149.41,149.33,25.68]
[1745462890864,10.18741377,149.43,149.33,35.86741377]
[1745462891159,10.18741377,149.43,149.33,25.68]
[1745462891354,10.18741377,149.41,149.33,25.68]
[1745462891759,35.86741377,149.41,149.33,25.68]
[1745462891960,10.18741377,149.37,149.32,3.957]
[1745462892160,10.18741377,149.35,149.25,27.701]
[1745462892356,10.18741377,149.35,149.25,29.7604]
[1745462892554,16.88131377,149.35,149.25,29.7604]
[1745462893062,10.18741377,149.31,149.25,4.0804]
[1745462894265,10.18741377,149.29,149.22,29.181]
[1745462894661,10.18741377,149.29,149.22,27.16]
[1745462894862,37.34741377,149.29,149.21,2.0308]
[1745462895959,37.34741377,149.29,149.24,6.6981]
[1745462896160,10.18741377,149.27,149.21,2.0308]
[1745462896359,10.18741377,149.27,149.24,6.6981]
[1745462896564,37.34741377,149.29,149.21,12.21821377]
[1745462897467,10.18741377,149.31,149.23,10.18741377]
[1745462897667,10.18741377,149.31,149.23,37.36741377]
[1745462898068,10.18741377,149.31,149.28,6.6965]
[1745462898263,10.18741377,149.31,149.23,37.36741377]
[1745462898264,27.18,149.32,149.23,37.36741377]
[1745462898470,10.18741377,149.33,149.23,37.36741377]
[1745462898670,37.36741377,149.33,149.23,37.36741377]
[1745462899168,10.18741377,149.31,149.23,27.18]
[1745462899466,10.18741377,149.31,149.26,6.6972]
[1745462899671,10.18741377,149.29,149.21,2.0308]
[1745462899871,10.18741377,149.29,149.26,6.6972]
[1745462900070,10.18741377,149.31,149.23,27.18]
[1745462900571,10.18741377,149.31,149.26,6.6972]
[1745462900770,10.18741377,149.31,149.23,27.18]
[1745462901071,16.88281377,149.31,149.23,27.18]
[1745462901772,16.88281377,149.31,149.26,6.6972]
[1745462901966,10.18741377,149.29,149.23,27.18]
[1745462902273,10.18741377,149.27,149.22,6.6992]
[1745462902666,2.0431,149.28,149.18,2.0496]
[1745462902667,10.18741377,149.24,149.18,2.0496]
[1745462902871,10.18741377,149.24,149.19,6.7005]
[1745462903171,10.18741377,149.24,149.18,2.0496]
[1745462903872,10.18741377,149.24,149.21,6.6997]
[1745462904070,27.18,149.25,149.18,12.23701377]
[1745462904283,12.23051377,149.28,149.2,10.18741377]
[1745462904473,27.18,149.29,149.26,6.6975]
[1745462904974,27.18,149.29,149.27,6.6971]
[1745462905276,27.18,149.29,149.23,1.9356]
[1745462905473,37.36741377,149.32,149.28,6.6966]
[1745462905671,37.36741377,149.32,149.23,1.9356]
[1745462905872,37.36741377,149.32,149.24,10.18741377]
[1745462906177,37.36741377,149.32,149.23,1.9356]
[1745462906775,10.18741377,149.28,149.21,27.18]
[1745462906967,10.18741377,149.26,149.19,1.8885]
[1745462907276,10.18741377,149.22,149.2,6.7001]
[1745462907870,10.18741377,149.22,149.15,27.18]
[1745462908375,10.18741377,149.22,149.18,6.7008]
[1745462908673,37.36741377,149.24,149.15,37.36741377]
[1745462908873,10.18741377,149.26,149.17,10.18741377]
[1745462909175,16.88501377,149.26,149.18,3.8441]
[1745462909376,16.34372603,149.26,149.18,3.8441]
[1745462910178,1.903,149.27,149.19,27.2]
[1745462910374,27.2,149.3,149.19,29.2556]
[1745462910569,27.2,149.3,149.27,6.6969]
[1745462910876,27.2,149.3,149.2,16.34372603]
[1745462911076,27.2,149.3,149.23,27.2]
[1745462911377,16.34372603,149.31,149.23,27.2]
[1745462912073,16.34372603,149.31,149.28,6.6965]
[1745462912380,16.34372603,149.31,149.23,27.2]
[1745462912675,16.34372603,149.31,149.25,6.6977]
[1745462912873,6.696,149.3,149.25,6.6977]
[1745462913378,23.03922603,149.31,149.26,6.6975]
[1745462913574,23.03922603,149.31,149.23,27.2]
[1745462913878,27.2,149.32,149.23,27.2]
[1745462914377,16.34372603,149.31,149.23,27.2]
[1745462915474,16.34372603,149.28,149.2,27.2]
[1745462915675,43.54372603,149.28,149.2,27.2]
[1745462915879,50.24062603,149.28,149.23,6.6986]
[1745462916478,6.6971,149.27,149.22,6.699]
[1745462916679,8.6741,149.27,149.22,6.699]
[1745462917172,1.977,149.27,149.23,6.6986]
[1745462917877,1.977,149.27,149.2,27.2]
[1745462917878,1.977,149.27,149.24,6.6983]
[1745462918376,8.6741,149.27,149.22,6.6993]
[1745462918579,8.6741,149.27,149.2,27.2]
[1745462919080,8.6741,149.27,149.22,6.6993]
[1745462919274,1.977,149.27,149.18,3.8441]
[1745462919481,4.048,149.27,149.18,3.8441]
[1745462919881,6.6983,149.25,149.21,6.6995]
[1745462920180,4.048,149.27,149.18,3.8441]
[1745462920375,6.6981,149.25,149.21,6.6995]
[1745462920574,6.6981,149.25,149.18,3.8441]
[1745462921083,6.6977,149.26,149.22,6.6992]
[1745462921377,16.34372603,149.25,149.18,3.8441]
[1745462921585,6.6984,149.24,149.18,3.8441]
[1745462921778,16.34372603,149.25,149.18,3.8441]
[1745462921977,16.34372603,149.25,149.18,1.8885]
[1745462922179,33.8988,149.24,149.18,1.8885]
[1745462922479,27.2,149.24,149.18,1.8885]
[1745462922783,33.8987,149.24,149.2,6.6999]
[1745462923183,27.2,149.24,149.18,1.8885]
[1745462923582,16.34372603,149.19,149.0,62.57572347]
[1745462923783,16.34372603,149.13,149.04,3.8352]
[1745462923983,27.72,149.13,149.04,3.8352]
[1745462924585,27.72,149.13,149.08,6.7055]
[1745462924785,16.34372603,149.11,149.04,3.8352]
[1745462925285,23.04802603,149.11,149.04,3.8352]
[1745462925487,16.34372603,149.11,149.04,3.8352]
[1745462925884,23.04812603,149.11,149.04,3.8352]
[1745462926285,44.06372603,149.13,149.04,31.5552]
[1745462927089,6.7046,149.11,149.04,38.2623]
[1745462927284,44.06372603,149.13,149.01,23.4658963]
[1745462927285,27.72,149.13,149.01,23.4658963]
[1745462927584,16.34372603,149.06,149.01,30.1744963]
[1745462928289,16.34372603,149.06,149.01,6.7086]
[1745462928490,27.74,149.09,149.0,27.74]
[1745462928793,34.4453,149.09,149.0,27.74]
[1745462929191,27.74,149.09,149.0,27.74]
[1745462929591,27.74,149.09,149.03,6.7076]
[1745462929891,27.74,149.09,149.0,27.74]
[1745462930390,16.34372603,149.06,148.96,27.74]
[1745462930587,16.34372603,149.06,148.97,5.8573]
[1745462931183,16.34372603,149.03,148.97,3.8875]
[1745462931392,16.34372603,149.0,148.94,1.9621]
[1745462932388,44.08372603,149.03,148.94,29.7021]
[1745462932592,16.34372603,149.03,148.94,29.7021]
[1745462933194,16.34372603,149.03,149.0,6.7089]
[1745462934297,16.34372603,149.03,148.99,6.7095]
[1745462934496,16.34372603,149.03,148.91,29.698]
[1745462934794,16.34372603,149.03,148.97,6.7102]
[1745462934989,16.34372603,149.03,148.92,1.8979]
[1745462935490,16.34372603,149.03,148.97,6.7104]
[1745462935997,23.05192603,149.03,148.97,6.7105]
[1745462936195,16.34372603,149.0,148.97,6.7105]
[1745462937696,16.34372603,149.0,148.98,6.71]
[1745462937897,16.34372603,149.0,148.92,1.8979]
[1745462938289,16.34372603,149.0,148.99,6.7097]
[1745462939299,27.76,149.01,148.99,6.7097]
[1745462939495,1.9019,149.05,148.96,44.10372603]
[1745462939697,16.34372603,149.03,148.82,357.0]
[1745462939895,16.34372603,148.98,148.84,3.9853]
[1745462940201,16.34372603,149.01,148.86,16.34372603]
[1745462940398,16.34372603,149.01,148.89,16.34372603]
[1745462940702,31.6324,149.02,148.92,16.34372603]
[1745462940900,31.6324,149.02,148.93,29.801]
[1745462941101,16.34372603,149.01,148.93,29.801]
[1745462941403,16.34372603,149.01,148.93,27.76]
[1745462941603,16.34372603,149.01,148.94,6.7116]
[1745462941903,23.05252603,149.01,148.94,6.7116]
[1745462942298,6.7093,149.0,148.93,6.7122]
[1745462942699,6.7093,149.0,148.9,29.6872]
[1745462942905,23.05262603,149.01,148.9,29.6872]
[1745462943106,16.34372603,149.01,148.9,29.6872]
[1745462943404,6.7094,149.0,148.9,27.76]
[1745462943907,6.7092,149.0,148.95,6.7114]
[1745462944101,18.35322603,149.01,148.95,6.7114]
[1745462944406,16.34372603,148.98,148.9,27.76]
[1745462944605,27.76,148.98,148.9,27.76]
[1745462945000,44.12372603,149.01,148.97,6.7102]
[1745462945206,44.12372603,149.01,148.91,1.8997]
[1745462945596,44.12372603,149.01,148.92,1.9844]
[1745462946002,44.12372603,149.01,148.98,6.7101]
[1745462946402,44.12372603,149.01,148.92,1.9844]
[1745462946603,27.78,149.01,148.98,6.7098]
[1745462947302,27.78,149.01,148.99,6.7096]
[1745462947502,575.36372603,149.04,148.94,27.78]
[1745462947806,575.36372603,149.04,149.01,6.7086]
[1745462948005,559.02,149.04,149.01,6.7086]
[1745462948204,27.78,149.04,148.95,1.9598]
[1745462948604,27.78,149.04,149.0,6.7089]
[1745462949905,27.78,149.04,149.01,6.7087]
[1745462950302,27.78,149.04,148.95,1.9598]
[1745462950606,44.12372603,149.04,148.95,1.9598]
[1745462950801,531.38,149.11,148.98,16.34372603]
[1745462951010,1.9121,149.1,148.99,29.8041]
[1745462951201,44.12372603,149.12,148.99,31.7204]
[1745462951508,44.12372603,149.12,149.06,6.7062]
[1745462951908,16.34372603,149.09,149.0,27.78]
[1745462952606,16.34372603,149.06,149.0,27.78]
[1745462954409,1.9968,149.08,149.0,27.78]
[1745462954610,44.96372603,149.12,149.0,27.78]
[1745462955107,44.96372603,149.12,149.07,6.7058]
[1745462955408,44.96372603,149.12,149.04,28.62]
[1745462955612,51.66752603,149.12,149.04,28.62]
[1745462955806,44.96372603,149.12,149.04,28.62]
[1745462956212,44.96372603,149.12,149.08,6.7053]
[1745462956509,44.96372603,149.12,149.04,28.62]
[1745462957411,44.96372603,149.12,149.09,6.7052]
[1745462957612,16.34372603,149.12,149.09,6.7052]
[1745462958412,1.9968,149.13,149.1,6.7044]
[1745462958910,1.9121,149.14,149.05,1.8863]
[1745462959107,1.9121,149.14,149.11,6.704]
[1745462959712,1.9121,149.14,149.12,6.7038]
[1745462959913,1.9121,149.14,149.06,2.0579]
[1745462960108,16.34372603,149.15,149.06,2.0579]
[1745462960307,1.9508,149.17,149.06,2.0579]
[1745462960512,8.6524,149.17,149.06,2.0579]
[1745462960711,1.9508,149.17,149.06,2.0579]
[1745462960914,16.34372603,149.15,149.09,6.7048]
[1745462961110,16.34372603,149.12,149.05,1.8863]
[1745462961617,6.7034,149.13,149.05,1.8863]
[1745462961816,16.34372603,149.13,149.07,6.7059]
[1745462962317,6.7039,149.12,149.07,6.7059]
[1745462962518,18.23782603,149.13,149.08,6.7054]
[1745462962816,18.23782603,149.13,149.05,1.8863]
[1745462963519,18.23782603,149.13,149.09,6.705]
[1745462964210,24.94132603,149.13,149.09,6.705]
[1745462964414,18.23782603,149.13,149.09,6.705]
[1745462964816,24.94132603,149.13,149.09,6.705]
[1745462965718,24.94132603,149.13,149.1,6.7047]
[1745462967021,6.7039,149.12,149.09,6.7051]
[1745462967319,18.23782603,149.13,149.09,6.7051]
[1745462967617,24.94142603,149.13,149.09,6.7048]
[1745462968318,18.23782603,149.13,149.08,6.7054]
[1745462968818,6.7044,149.11,149.08,6.7054]
[1745462969511,51.64842603,149.1,149.07,6.7058]
[1745462969712,61.28745206,149.1,149.01,28.6]
[1745462969916,16.34372603,149.07,149.05,6.7065]
[1745462970412,16.34372603,149.07,149.01,28.6]
[1745462970612,2.0277,149.09,149.01,28.6]
[1745462970810,16.34372603,149.07,149.01,28.6]
[1745462971214,16.34372603,149.07,148.98,28.6]
[1745462971418,30.674,149.06,148.98,28.6]
[1745462971719,37.3808,149.06,149.01,6.7085]
[1745462971918,30.674,149.06,149.01,6.7085]
[1745462972219,16.34372603,149.04,149.01,6.7085]
[1745462972413,16.34372603,149.04,149.0,6.7091]
[1745462973116,23.05142603,149.04,149.0,6.7091]
[1745462974323,6.7079,149.03,148.99,6.7095]
[1745462974823,16.34372603,149.04,149.0,6.709]
[1745462974824,23.05132603,149.04,149.0,6.709]
[1745462975021,16.34372603,149.04,148.96,4.1549]
[1745462975321,30.674,149.06,148.96,4.1549]
[1745462975715,30.6277,149.09,148.98,16.34372603]
[1745462975918,37.3332,149.09,148.99,28.6]
[1745462976426,37.3332,149.09,149.04,6.7072]
[1745462977726,30.6277,149.09,149.05,6.7066]
[1745462978021,28.6,149.09,148.99,28.6]
[1745462979323,35.3054,149.09,149.04,6.7073]
[1745462980027,6.7057,149.08,149.03,6.7077]
[1745462980225,6.7057,149.08,148.99,28.6]
[1745462980226,28.6,149.09,148.99,28.6]
[1745462980422,16.34372603,149.07,148.99,28.6]
[1745462981326,16.34372603,149.04,148.92,358.16758933]
[1745462981522,30.6058,149.09,148.9,30.5781]
[1745462981523,16.34372603,149.0,148.9,30.5781]
[1745462981826,16.34372603,149.0,148.91,28.6]
[1745462982227,16.34372603,148.97,148.91,28.6]
[1745462982429,16.34372603,148.97,148.91,6.7132]
[1745462982930,44.94372603,148.97,148.91,6.7132]
[1745462983124,44.94372603,148.97,148.88,28.6]
[1745462983428,16.34372603,148.94,148.88,28.6]
[1745462984426,16.34372603,148.94,148.89,6.7141]
[1745462984831,16.34372603,148.94,148.88,28.6]
[1745462985031,44.94372603,148.97,148.88,28.6]
[1745462986328,51.65432603,148.97,148.88,28.6]